[Event "*** Titled Tuesday Blitz"]
[Site "Chess.com"]
[Date "2020.04.14"]
[Round "5"]
[White "BojanR1"]
[Black "AttilaTurzo"]
[Result "0-1"]
[WhiteElo "2332"]
[BlackElo "2496"]
[TimeControl "180+1"]
[EndTime "10:49:35 PDT"]
[Termination "AttilaTurzo won by resignation"]

1. d4 {[%clk 0:03:00.9]} 1... Nf6 {[%clk 0:02:58.4]} 2. Nf3 {[%clk 0:03:00.7]}
2... e6 {[%clk 0:02:58.3]} 3. c4 {[%clk 0:02:55.7]} 3... Bb4+ {[%clk 0:02:57.4]}
4. Bd2 {[%clk 0:02:55.2]} 4... Qe7 {[%clk 0:02:57.5]} 5. a3 {[%clk 0:02:53.8]}
5... Bxd2+ {[%clk 0:02:56.7]} 6. Nbxd2 {[%clk 0:02:54.7]} 6... d6 {[%clk
0:02:55.4]} 7. e4 {[%clk 0:02:54.6]} 7... e5 {[%clk 0:02:49.2]} 8. d5 {[%clk
0:02:54.1]} 8... a5 {[%clk 0:02:48.8]} 9. b4 {[%clk 0:02:53.4]} 9... Na6 {[%clk
0:02:48.9]} 10. Qb1 {[%clk 0:02:51]} 10... O-O {[%clk 0:02:44.7]} 11. Bd3 {[%clk
0:02:50.4]} 11... Bg4 {[%clk 0:02:28.7]} 12. h3 {[%clk 0:02:48.5]} 12... Bxf3
{[%clk 0:02:28.7]} 13. Nxf3 {[%clk 0:02:49.4]} 13... axb4 {[%clk 0:02:14.5]} 14.
axb4 {[%clk 0:02:47.2]} 14... Nxb4 {[%clk 0:02:14.6]} 15. Rxa8 {[%clk
0:02:36.1]} 15... Nxd3+ {[%clk 0:02:08.5]} 16. Qxd3 {[%clk 0:02:36.1]} 16...
Rxa8 {[%clk 0:02:09.1]} 17. O-O {[%clk 0:02:36.4]} 17... Nd7 {[%clk 0:02:05.7]}
18. Rb1 {[%clk 0:02:33.9]} 18... Nc5 {[%clk 0:02:04.2]} 19. Qc2 {[%clk
0:02:32.9]} 19... Qd7 {[%clk 0:02:01.5]} 20. Nd2 {[%clk 0:02:30.8]} 20... Qa4
{[%clk 0:02:01.2]} 21. Qxa4 {[%clk 0:02:26.2]} 21... Rxa4 {[%clk 0:02:02.1]} 22.
Rb2 {[%clk 0:02:22.5]} 22... Ra1+ {[%clk 0:02:00.3]} 23. Kh2 {[%clk 0:02:21.9]}
23... g6 {[%clk 0:01:58.6]} 24. f3 {[%clk 0:02:21.8]} 24... f5 {[%clk
0:01:58.5]} 25. Kg3 {[%clk 0:02:18.7]} 25... f4+ {[%clk 0:01:57.2]} 26. Kh2
{[%clk 0:02:18]} 26... Kf7 {[%clk 0:01:39.1]} 27. Nb3 {[%clk 0:02:17.9]} 27...
Nxb3 {[%clk 0:01:14.7]} 28. Rxb3 {[%clk 0:02:17.6]} 28... b6 {[%clk 0:01:14.2]}
29. Rc3 {[%clk 0:02:13.4]} 29... g5 {[%clk 0:01:13.4]} 30. Rc2 {[%clk
0:02:11.7]} 30... h5 {[%clk 0:01:12.6]} 31. Rc3 {[%clk 0:02:08.8]} 31... h4
{[%clk 0:01:10.9]} 32. Rc2 {[%clk 0:02:08.4]} 32... Ke7 {[%clk 0:01:10.6]} 33.
Rb2 {[%clk 0:02:06.9]} 33... Kd7 {[%clk 0:01:09.8]} 34. Rc2 {[%clk 0:02:05.4]}
34... Kc8 {[%clk 0:01:06.5]} 35. Rb2 {[%clk 0:02:00.7]} 35... Kb7 {[%clk
0:01:06.2]} 36. Rb3 {[%clk 0:01:56.8]} 36... Ka6 {[%clk 0:01:04.6]} 37. Rb2
{[%clk 0:01:53.9]} 37... Ra4 {[%clk 0:00:58.9]} 38. Rc2 {[%clk 0:01:52.5]} 38...
Ka5 {[%clk 0:00:58]} 39. Kg1 {[%clk 0:01:50.6]} 39... Kb4 {[%clk 0:00:58.1]} 40.
Kf2 {[%clk 0:01:50.8]} 40... Kb3 {[%clk 0:00:57.5]} 41. Rc1 {[%clk 0:01:50.7]}
41... Kb2 {[%clk 0:00:52.3]} 42. Rd1 {[%clk 0:01:50.2]} 42... Rxc4 {[%clk
0:00:52.4]} 43. Ke2 {[%clk 0:01:50.7]} 43... Rc2+ {[%clk 0:00:52.1]} 44. Kd3
{[%clk 0:01:50.9]} 44... Rxg2 {[%clk 0:00:47.7]} 45. Kc4 {[%clk 0:01:51]} 45...
Rc2+ {[%clk 0:00:41.2]} 46. Kb5 {[%clk 0:01:50.6]} 46... Rc5+ {[%clk 0:00:40.6]}
47. Ka6 {[%clk 0:01:50.1]} 47... b5 {[%clk 0:00:35.3]} 48. Rg1 {[%clk
0:01:48.6]} 48... b4 {[%clk 0:00:34.4]} 49. Rxg5 {[%clk 0:01:48.7]} 49... b3
{[%clk 0:00:34.6]} 50. Rg4 {[%clk 0:01:49.2]} 50... Ka2 {[%clk 0:00:33.1]} 51.
Rxh4 {[%clk 0:01:50.1]} 51... b2 {[%clk 0:00:33.4]} 52. Rh8 {[%clk 0:01:51]}
52... b1=Q {[%clk 0:00:31.8]} 53. Rb8 {[%clk 0:01:51.9]} 0-1

[Event "*** Titled Tuesday Blitz"]
[Site "Chess.com"]
[Date "2020.04.14"]
[Round "5"]
[White "JoakimVonAnd"]
[Black "Hippotaner"]
[Result "0-1"]
[WhiteElo "2471"]
[BlackElo "2268"]
[TimeControl "180+1"]
[EndTime "10:49:35 PDT"]
[Termination "Hippotaner won by resignation"]

1. d4 {[%clk 0:03:00.9]} 1... Nf6 {[%clk 0:02:59.4]} 2. c4 {[%clk 0:03:01.3]}
2... e6 {[%clk 0:02:59.6]} 3. Nc3 {[%clk 0:03:01.4]} 3... Bb4 {[%clk 0:02:59.8]}
4. e3 {[%clk 0:03:00.4]} 4... b6 {[%clk 0:02:57.8]} 5. Ne2 {[%clk 0:02:58.8]}
5... Ne4 {[%clk 0:02:52]} 6. a3 {[%clk 0:02:55.9]} 6... Bxc3+ {[%clk 0:02:51.4]}
7. Nxc3 {[%clk 0:02:55.9]} 7... Nxc3 {[%clk 0:02:51.6]} 8. bxc3 {[%clk
0:02:56.8]} 8... Bb7 {[%clk 0:02:52.2]} 9. Bd3 {[%clk 0:02:54.7]} 9... O-O
{[%clk 0:02:48.9]} 10. e4 {[%clk 0:02:54]} 10... d6 {[%clk 0:02:48.5]} 11. O-O
{[%clk 0:02:47.7]} 11... e5 {[%clk 0:02:48.9]} 12. f4 {[%clk 0:02:46.4]} 12...
exd4 {[%clk 0:02:48]} 13. cxd4 {[%clk 0:02:45.2]} 13... c5 {[%clk 0:02:48.9]}
14. d5 {[%clk 0:02:45.3]} 14... Nd7 {[%clk 0:02:48.5]} 15. Bb2 {[%clk 0:02:45]}
15... Rc8 {[%clk 0:02:43.7]} 16. e5 {[%clk 0:02:40.9]} 16... b5 {[%clk
0:02:42.1]} 17. cxb5 {[%clk 0:02:25.8]} 17... c4 {[%clk 0:02:41.6]} 18. Bf5
{[%clk 0:02:23.5]} 18... Qb6+ {[%clk 0:02:26]} 19. Bd4 {[%clk 0:02:19.2]} 19...
Qxb5 {[%clk 0:02:23]} 20. Rb1 {[%clk 0:02:17.5]} 20... Qxd5 {[%clk 0:02:23.1]}
21. Rxb7 {[%clk 0:02:10.8]} 21... Qxb7 {[%clk 0:02:21.6]} 22. exd6 {[%clk
0:02:08.4]} 22... g6 {[%clk 0:02:16.3]} 23. Rf3 {[%clk 0:01:59.1]} 23... Rfe8
{[%clk 0:02:06.8]} 24. Bc3 {[%clk 0:01:38.3]} 24... Qb6+ {[%clk 0:01:46]} 25.
Kh1 {[%clk 0:01:34.7]} 25... Rcd8 {[%clk 0:01:44.1]} 26. h4 {[%clk 0:01:20.9]}
26... Nf8 {[%clk 0:01:33.3]} 27. d7 {[%clk 0:01:15]} 27... Re7 {[%clk
0:01:28.6]} 28. Bh3 {[%clk 0:01:07.9]} 28... Nxd7 {[%clk 0:01:14.2]} 29. f5
{[%clk 0:01:05.9]} 29... Ne5 {[%clk 0:01:12.1]} 30. Qf1 {[%clk 0:01:04.9]} 30...
Nxf3 {[%clk 0:01:10.7]} 31. Qxf3 {[%clk 0:01:05.8]} 31... Rd3 {[%clk 0:01:00]}
32. Qa8+ {[%clk 0:01:02.4]} 32... Qd8 {[%clk 0:00:59.6]} 33. Qxd8+ {[%clk
0:01:01.9]} 33... Rxd8 {[%clk 0:00:58]} 34. Bf6 {[%clk 0:01:00.8]} 34... Rd1+
{[%clk 0:00:57.5]} 35. Kh2 {[%clk 0:01:00.6]} 35... Re3 {[%clk 0:00:56]} 36.
fxg6 {[%clk 0:01:00.7]} 36... hxg6 {[%clk 0:00:56.1]} 37. h5 {[%clk 0:01:00.5]}
37... c3 {[%clk 0:00:56.1]} 38. hxg6 {[%clk 0:01:00.1]} 38... c2 {[%clk
0:00:56.3]} 39. gxf7+ {[%clk 0:00:59.3]} 39... Kxf7 {[%clk 0:00:56.4]} 40. Bb2
{[%clk 0:00:59.8]} 40... c1=Q {[%clk 0:00:56.2]} 41. Bxc1 {[%clk 0:00:59.2]}
41... Rxc1 {[%clk 0:00:57.1]} 0-1

[Event "*** Titled Tuesday Blitz"]
[Site "Chess.com"]
[Date "2020.04.14"]
[Round "5"]
[White "benko_008"]
[Black "Gaguna"]
[Result "0-1"]
[WhiteElo "2445"]
[BlackElo "2690"]
[TimeControl "180+1"]
[EndTime "10:49:36 PDT"]
[Termination "Gaguna won by resignation"]

1. Nf3 {[%clk 0:03:00.9]} 1... d6 {[%clk 0:02:59.4]} 2. d4 {[%clk 0:03:00]} 2...
g6 {[%clk 0:02:58.7]} 3. e4 {[%clk 0:02:58.9]} 3... Bg7 {[%clk 0:02:59]} 4. Nc3
{[%clk 0:02:58.3]} 4... Nf6 {[%clk 0:02:59.4]} 5. h3 {[%clk 0:02:57.3]} 5... O-O
{[%clk 0:02:59.7]} 6. Be3 {[%clk 0:02:53.8]} 6... c6 {[%clk 0:02:59.4]} 7. a4
{[%clk 0:02:52.2]} 7... Nbd7 {[%clk 0:02:56.9]} 8. g3 {[%clk 0:02:51.2]} 8... e5
{[%clk 0:02:56.4]} 9. Bg2 {[%clk 0:02:50.8]} 9... d5 {[%clk 0:02:41.9]} 10. dxe5
{[%clk 0:02:44.3]} 10... Nxe4 {[%clk 0:02:40.7]} 11. Nxe4 {[%clk 0:02:42.5]}
11... dxe4 {[%clk 0:02:40]} 12. Ng5 {[%clk 0:02:30.7]} 12... Nxe5 {[%clk
0:02:31.9]} 13. Qxd8 {[%clk 0:02:22.5]} 13... Rxd8 {[%clk 0:02:30]} 14. Nxe4
{[%clk 0:02:22.3]} 14... Nc4 {[%clk 0:02:29.7]} 15. Bg5 {[%clk 0:02:14.7]} 15...
Re8 {[%clk 0:02:23.1]} 16. O-O {[%clk 0:02:12]} 16... Bxb2 {[%clk 0:02:17.2]}
17. Nf6+ {[%clk 0:01:49.2]} 17... Bxf6 {[%clk 0:02:15.6]} 18. Bxf6 {[%clk
0:01:50.1]} 18... Bf5 {[%clk 0:02:12.4]} 19. Rab1 {[%clk 0:01:45.1]} 19... Nd2
{[%clk 0:02:02.6]} 20. Rxb7 {[%clk 0:01:43.8]} 20... Nxf1 {[%clk 0:02:02.2]} 21.
Bxf1 {[%clk 0:01:36.1]} 21... Bxc2 {[%clk 0:01:52]} 22. Bc4 {[%clk 0:01:34.6]}
22... Re1+ {[%clk 0:01:51.5]} 23. Kh2 {[%clk 0:01:30.6]} 23... Be4 {[%clk
0:01:51]} 24. Bxf7+ {[%clk 0:01:27.1]} 24... Kf8 {[%clk 0:01:50]} 25. g4 {[%clk
0:01:20.8]} 25... Bd5 {[%clk 0:01:40.2]} 26. Bxd5 {[%clk 0:01:15]} 26... cxd5
{[%clk 0:01:39.8]} 27. Rxh7 {[%clk 0:01:15.5]} 27... Rae8 {[%clk 0:01:39.3]} 28.
Bd4 {[%clk 0:01:11.1]} 28... R8e4 {[%clk 0:01:36.1]} 29. Bxa7 {[%clk 0:01:07.2]}
29... Rxa4 {[%clk 0:01:35.3]} 30. Rd7 {[%clk 0:01:01.4]} 30... Rd1 {[%clk
0:01:27.5]} 31. Kg3 {[%clk 0:00:57.1]} 31... d4 {[%clk 0:01:25.8]} 32. h4 {[%clk
0:00:53.2]} 32... d3 {[%clk 0:01:23.8]} 33. f3 {[%clk 0:00:49]} 33... Rxa7
{[%clk 0:01:20.3]} 34. Rxa7 {[%clk 0:00:38.2]} 34... d2 {[%clk 0:01:20.2]} 35.
Kf4 {[%clk 0:00:29.9]} 35... Re1 {[%clk 0:01:18.6]} 0-1

[Event "*** Titled Tuesday Blitz"]
[Site "Chess.com"]
[Date "2020.04.14"]
[Round "5"]
[White "M1711"]
[Black "josmito10"]
[Result "0-1"]
[WhiteElo "2544"]
[BlackElo "2747"]
[TimeControl "180+1"]
[EndTime "10:49:38 PDT"]
[Termination "josmito10 won on time"]

1. e4 {[%clk 0:02:47.4]} 1... c5 {[%clk 0:02:59.6]} 2. Nf3 {[%clk 0:02:46.4]}
2... Nc6 {[%clk 0:02:59.7]} 3. d4 {[%clk 0:02:45.1]} 3... cxd4 {[%clk
0:03:00.6]} 4. Nxd4 {[%clk 0:02:46]} 4... Qc7 {[%clk 0:03:01.3]} 5. c4 {[%clk
0:02:41.8]} 5... Qe5 {[%clk 0:03:01.2]} 6. Be3 {[%clk 0:02:38]} 6... Qxe4 {[%clk
0:03:00.7]} 7. Nc3 {[%clk 0:02:37.2]} 7... Qe5 {[%clk 0:03:00.3]} 8. Be2 {[%clk
0:02:30.8]} 8... a6 {[%clk 0:02:59]} 9. O-O {[%clk 0:02:29.4]} 9... Nf6 {[%clk
0:02:58.5]} 10. Bf3 {[%clk 0:02:21.4]} 10... e6 {[%clk 0:02:57.5]} 11. Re1
{[%clk 0:02:15.1]} 11... Be7 {[%clk 0:02:48.3]} 12. Nb3 {[%clk 0:01:48.6]} 12...
O-O {[%clk 0:02:31]} 13. g3 {[%clk 0:01:28.1]} 13... Qc7 {[%clk 0:02:27.6]} 14.
Rc1 {[%clk 0:01:22.9]} 14... Ne5 {[%clk 0:02:21.2]} 15. Be2 {[%clk 0:00:51.9]}
15... Nxc4 {[%clk 0:01:59.1]} 16. Bf4 {[%clk 0:00:36.9]} 16... d6 {[%clk
0:01:54.2]} 17. Bxc4 {[%clk 0:00:28.5]} 17... Qxc4 {[%clk 0:01:53.6]} 18. Ne4
{[%clk 0:00:28.7]} 18... Qa4 {[%clk 0:01:38.5]} 19. Nxf6+ {[%clk 0:00:13.3]}
19... Bxf6 {[%clk 0:01:38.1]} 20. Qxd6 {[%clk 0:00:06.8]} 20... Qxa2 {[%clk
0:01:31]} 21. Nc5 {[%clk 0:00:02.9]} 21... Qd5 {[%clk 0:01:23.1]} 22. Qc7 {[%clk
0:00:02.1]} 22... e5 {[%clk 0:01:16.3]} 23. Bxe5 {[%clk 0:00:01.7]} 23... Bh3
{[%clk 0:01:16.4]} 0-1

[Event "*** Titled Tuesday Blitz"]
[Site "Chess.com"]
[Date "2020.04.14"]
[Round "5"]
[White "RD4ever"]
[Black "Zurability"]
[Result "0-1"]
[WhiteElo "2856"]
[BlackElo "2721"]
[TimeControl "180+1"]
[EndTime "10:49:42 PDT"]
[Termination "Zurability won by resignation"]

1. e4 {[%clk 0:03:00.9]} 1... c5 {[%clk 0:02:59.8]} 2. Nf3 {[%clk 0:03:00.8]}
2... d6 {[%clk 0:03:00.3]} 3. d4 {[%clk 0:03:00.6]} 3... cxd4 {[%clk 0:03:01.2]}
4. Nxd4 {[%clk 0:03:01.5]} 4... Nf6 {[%clk 0:03:01.7]} 5. Nc3 {[%clk 0:03:02.2]}
5... a6 {[%clk 0:03:02.3]} 6. Bd3 {[%clk 0:03:02.5]} 6... g6 {[%clk 0:03:00]} 7.
Be3 {[%clk 0:03:02.2]} 7... Bg7 {[%clk 0:03:00.4]} 8. f3 {[%clk 0:03:02.8]} 8...
Nbd7 {[%clk 0:02:57.9]} 9. Qd2 {[%clk 0:03:02.4]} 9... b5 {[%clk 0:02:57.8]} 10.
a4 {[%clk 0:02:55.5]} 10... b4 {[%clk 0:02:54.4]} 11. Na2 {[%clk 0:02:45.7]}
11... a5 {[%clk 0:02:49.9]} 12. c3 {[%clk 0:02:42.9]} 12... bxc3 {[%clk
0:02:41.4]} 13. Nxc3 {[%clk 0:02:43.8]} 13... Bb7 {[%clk 0:02:41.7]} 14. O-O
{[%clk 0:02:40.9]} 14... O-O {[%clk 0:02:40.3]} 15. Kh1 {[%clk 0:02:36.3]} 15...
Nc5 {[%clk 0:02:32.9]} 16. Bc2 {[%clk 0:02:28.8]} 16... Nfd7 {[%clk 0:02:29.4]}
17. Ndb5 {[%clk 0:02:18.9]} 17... Rc8 {[%clk 0:02:21.1]} 18. Bh6 {[%clk
0:02:16.8]} 18... Bxh6 {[%clk 0:02:08.8]} 19. Qxh6 {[%clk 0:02:17.7]} 19... Ne5
{[%clk 0:02:07.8]} 20. Rad1 {[%clk 0:02:16.7]} 20... Qb6 {[%clk 0:02:01.8]} 21.
Qh4 {[%clk 0:01:58.7]} 21... Rfe8 {[%clk 0:01:56.2]} 22. Qf2 {[%clk 0:01:53.3]}
22... Nc4 {[%clk 0:01:40.4]} 23. Qd4 {[%clk 0:01:24.3]} 23... Nd7 {[%clk
0:01:28.4]} 24. Qxb6 {[%clk 0:01:01.3]} 24... Ndxb6 {[%clk 0:01:27.4]} 25. Rb1
{[%clk 0:01:01.8]} 25... Nd2 {[%clk 0:01:26.5]} 26. Rfd1 {[%clk 0:00:56.3]}
26... Nxb1 {[%clk 0:01:25.7]} 27. Bxb1 {[%clk 0:00:57.2]} 27... Red8 {[%clk
0:01:21.1]} 28. Kg1 {[%clk 0:00:56.5]} 28... d5 {[%clk 0:01:19.3]} 29. e5 {[%clk
0:00:56.9]} 29... Nc4 {[%clk 0:01:17.6]} 30. Ba2 {[%clk 0:00:48.4]} 30... Nxb2
{[%clk 0:01:15.7]} 31. Rd2 {[%clk 0:00:47.3]} 31... Nc4 {[%clk 0:01:15.6]} 32.
Bxc4 {[%clk 0:00:40.7]} 32... dxc4 {[%clk 0:01:13.1]} 33. Rb2 {[%clk 0:00:39.9]}
33... Rd3 {[%clk 0:01:10.4]} 34. Kf2 {[%clk 0:00:39.3]} 34... Bc6 {[%clk
0:01:09]} 35. Na7 {[%clk 0:00:37.9]} 35... Rc7 {[%clk 0:01:08.7]} 36. Rb8+
{[%clk 0:00:37]} 36... Kg7 {[%clk 0:01:08.7]} 37. Ncb5 {[%clk 0:00:37.9]} 37...
Bxb5 {[%clk 0:01:05.2]} 38. Nxb5 {[%clk 0:00:38.8]} 38... Rc5 {[%clk 0:01:03.6]}
39. Ke2 {[%clk 0:00:38.3]} 0-1

[Event "*** Titled Tuesday Blitz"]
[Site "Chess.com"]
[Date "2020.04.14"]
[Round "5"]
[White "MrTattaglia"]
[Black "TomsKantans"]
[Result "1-0"]
[WhiteElo "2866"]
[BlackElo "2671"]
[TimeControl "180+1"]
[EndTime "10:49:43 PDT"]
[Termination "MrTattaglia won by resignation"]

1. Nf3 {[%clk 0:03:00.3]} 1... c5 {[%clk 0:02:59.8]} 2. g3 {[%clk 0:02:58.1]}
2... Nc6 {[%clk 0:02:59.6]} 3. c4 {[%clk 0:02:58.4]} 3... g6 {[%clk 0:02:57.6]}
4. Bg2 {[%clk 0:02:58.6]} 4... Bg7 {[%clk 0:02:57.9]} 5. Nc3 {[%clk 0:02:58.6]}
5... Nf6 {[%clk 0:02:57.8]} 6. O-O {[%clk 0:02:58]} 6... O-O {[%clk 0:02:57.7]}
7. d4 {[%clk 0:02:55.6]} 7... d5 {[%clk 0:02:57.8]} 8. dxc5 {[%clk 0:02:49.3]}
8... dxc4 {[%clk 0:02:57.7]} 9. Qa4 {[%clk 0:02:49.2]} 9... Qa5 {[%clk
0:02:57.4]} 10. Qxc4 {[%clk 0:02:48.4]} 10... Be6 {[%clk 0:02:57.3]} 11. Qh4
{[%clk 0:02:47.9]} 11... Qxc5 {[%clk 0:02:57]} 12. Bg5 {[%clk 0:02:48]} 12...
Rfd8 {[%clk 0:02:47.6]} 13. Rac1 {[%clk 0:02:29.7]} 13... Qa5 {[%clk 0:02:44.2]}
14. a3 {[%clk 0:02:29.3]} 14... Rac8 {[%clk 0:02:43.2]} 15. Rfd1 {[%clk
0:02:28.3]} 15... Qb6 {[%clk 0:02:03.2]} 16. Rxd8+ {[%clk 0:02:08.7]} 16... Rxd8
{[%clk 0:02:00]} 17. b4 {[%clk 0:02:08.7]} 17... Ng4 {[%clk 0:00:47.6]} 18. Ne4
{[%clk 0:01:54.4]} 18... f6 {[%clk 0:00:36.1]} 19. Nc5 {[%clk 0:01:54.4]} 19...
Bc8 {[%clk 0:00:22.9]} 20. Bd2 {[%clk 0:01:37.2]} 20... Nd4 {[%clk 0:00:15.6]}
21. Nxd4 {[%clk 0:01:27.9]} 21... Rxd4 {[%clk 0:00:16.5]} 22. Bc3 {[%clk
0:01:28.5]} 22... Rd8 {[%clk 0:00:14.3]} 23. h3 {[%clk 0:01:28.7]} 23... Ne5
{[%clk 0:00:12.3]} 24. Bxe5 {[%clk 0:01:27.9]} 24... fxe5 {[%clk 0:00:13.2]} 25.
Qxe7 {[%clk 0:01:24.2]} 25... Bf6 {[%clk 0:00:13.6]} 26. Bd5+ {[%clk 0:01:24.4]}
26... Rxd5 {[%clk 0:00:13.3]} 27. Qe8+ {[%clk 0:01:24.5]} 27... Kg7 {[%clk
0:00:13.4]} 28. Qxc8 {[%clk 0:01:24.6]} 28... a5 {[%clk 0:00:11.7]} 29. Ne6+
{[%clk 0:01:19.7]} 29... Kf7 {[%clk 0:00:10.4]} 30. Rc7+ {[%clk 0:01:18.7]}
30... Be7 {[%clk 0:00:10.9]} 31. Qf8+ {[%clk 0:01:18.7]} 31... Kxe6 {[%clk
0:00:10.7]} 32. Rxe7+ {[%clk 0:01:15.4]} 1-0

[Event "*** Titled Tuesday Blitz"]
[Site "Chess.com"]
[Date "2020.04.14"]
[Round "5"]
[White "zmeeed67"]
[Black "Spalir"]
[Result "0-1"]
[WhiteElo "2369"]
[BlackElo "2605"]
[TimeControl "180+1"]
[EndTime "10:49:43 PDT"]
[Termination "Spalir won on time"]

1. d4 {[%clk 0:03:00.8]} 1... d5 {[%clk 0:03:00.2]} 2. c4 {[%clk 0:03:00.1]}
2... c6 {[%clk 0:03:00.7]} 3. Nc3 {[%clk 0:02:59.5]} 3... Nf6 {[%clk 0:03:01.3]}
4. e3 {[%clk 0:02:59.1]} 4... e6 {[%clk 0:02:58.8]} 5. Nf3 {[%clk 0:02:58.4]}
5... Nbd7 {[%clk 0:02:59]} 6. Bd3 {[%clk 0:02:58]} 6... Bd6 {[%clk 0:02:59.2]}
7. e4 {[%clk 0:02:57.2]} 7... dxe4 {[%clk 0:02:58]} 8. Nxe4 {[%clk 0:02:56.4]}
8... Nxe4 {[%clk 0:02:58.3]} 9. Bxe4 {[%clk 0:02:57.3]} 9... Nf6 {[%clk
0:02:58.9]} 10. Bc2 {[%clk 0:02:56.6]} 10... h6 {[%clk 0:02:59.4]} 11. O-O
{[%clk 0:02:55.8]} 11... c5 {[%clk 0:02:59.9]} 12. dxc5 {[%clk 0:02:52.3]} 12...
Bxc5 {[%clk 0:03:00.5]} 13. Qxd8+ {[%clk 0:02:50.8]} 13... Kxd8 {[%clk
0:03:01.4]} 14. Bf4 {[%clk 0:02:14.8]} 14... Ke7 {[%clk 0:02:59.2]} 15. Be5
{[%clk 0:01:55.2]} 15... Bd7 {[%clk 0:02:49.5]} 16. Bd4 {[%clk 0:01:54.4]} 16...
Rac8 {[%clk 0:02:45.4]} 17. Bxc5+ {[%clk 0:01:32.9]} 17... Rxc5 {[%clk
0:02:46.3]} 18. Bd3 {[%clk 0:01:32.9]} 18... Rd8 {[%clk 0:02:41.5]} 19. b4
{[%clk 0:01:25]} 19... Rc7 {[%clk 0:02:36.2]} 20. Ne5 {[%clk 0:01:22.7]} 20...
Ba4 {[%clk 0:02:29.5]} 21. Rfc1 {[%clk 0:00:29.3]} 21... Nd7 {[%clk 0:02:27.3]}
22. Nxd7 {[%clk 0:00:28.9]} 22... Rdxd7 {[%clk 0:02:28.2]} 23. Bf1 {[%clk
0:00:28.2]} 23... Rd2 {[%clk 0:02:25.8]} 24. a3 {[%clk 0:00:28.2]} 24... Rcd7
{[%clk 0:02:22.6]} 25. c5 {[%clk 0:00:27.2]} 25... Rb2 {[%clk 0:02:21.3]} 26.
Rab1 {[%clk 0:00:26.6]} 26... Ra2 {[%clk 0:02:20]} 27. Ra1 {[%clk 0:00:26.5]}
27... Rdd2 {[%clk 0:02:19.2]} 28. f3 {[%clk 0:00:10.3]} 28... e5 {[%clk
0:02:05]} 29. Rxa2 {[%clk 0:00:09]} 29... Rxa2 {[%clk 0:02:03.4]} 30. Rc3 {[%clk
0:00:09.9]} 30... f5 {[%clk 0:02:00.5]} 31. Bc4 {[%clk 0:00:08.1]} 31... Rb2
{[%clk 0:01:59.2]} 32. Bd5 {[%clk 0:00:06.6]} 32... Bc6 {[%clk 0:01:56]} 33.
Bxc6 {[%clk 0:00:06.6]} 33... bxc6 {[%clk 0:01:56.9]} 34. Rd3 {[%clk 0:00:07]}
34... Ra2 {[%clk 0:01:48]} 35. Rd6 {[%clk 0:00:06.2]} 35... Rxa3 {[%clk
0:01:48.1]} 36. Rxc6 {[%clk 0:00:06.6]} 36... a5 {[%clk 0:01:43.7]} 37. b5
{[%clk 0:00:01.7]} 37... Rb3 {[%clk 0:01:43.4]} 38. Rb6 {[%clk 0:00:01.2]} 38...
a4 {[%clk 0:01:42.2]} 39. c6 {[%clk 0:00:01.2]} 39... Kd6 {[%clk 0:01:41.2]} 0-1

[Event "*** Titled Tuesday Blitz"]
[Site "Chess.com"]
[Date "2020.04.14"]
[Round "5"]
[White "AustrianFalcon"]
[Black "ApacheSVD"]
[Result "1-0"]
[WhiteElo "2552"]
[BlackElo "2371"]
[TimeControl "180+1"]
[EndTime "10:49:48 PDT"]
[Termination "AustrianFalcon won by resignation"]

1. e4 {[%clk 0:03:00.9]} 1... c5 {[%clk 0:02:58.9]} 2. Nf3 {[%clk 0:02:57.3]}
2... d6 {[%clk 0:02:58.6]} 3. d4 {[%clk 0:02:56.8]} 3... cxd4 {[%clk 0:02:59.3]}
4. Nxd4 {[%clk 0:02:57.5]} 4... Nf6 {[%clk 0:02:59.9]} 5. Nc3 {[%clk 0:02:58.1]}
5... g6 {[%clk 0:03:00.6]} 6. f3 {[%clk 0:02:55.8]} 6... Bg7 {[%clk 0:03:00.1]}
7. Be3 {[%clk 0:02:54.9]} 7... O-O {[%clk 0:03:00.5]} 8. Qd2 {[%clk 0:02:51.4]}
8... Nc6 {[%clk 0:03:00.7]} 9. O-O-O {[%clk 0:02:50.7]} 9... d5 {[%clk
0:03:01.1]} 10. exd5 {[%clk 0:02:49.1]} 10... Nxd5 {[%clk 0:03:01]} 11. Nxc6
{[%clk 0:02:49.4]} 11... bxc6 {[%clk 0:03:01.2]} 12. Bd4 {[%clk 0:02:49.1]}
12... Bxd4 {[%clk 0:03:01.4]} 13. Qxd4 {[%clk 0:02:50]} 13... Qb6 {[%clk
0:03:01.6]} 14. Na4 {[%clk 0:02:29.2]} 14... Qa5 {[%clk 0:03:00.6]} 15. b3
{[%clk 0:02:15.2]} 15... Be6 {[%clk 0:02:47.4]} 16. Qe5 {[%clk 0:02:15.4]} 16...
Qb4 {[%clk 0:02:22]} 17. Kb2 {[%clk 0:02:14.4]} 17... Rab8 {[%clk 0:02:19.5]}
18. Rd4 {[%clk 0:02:03.4]} 18... Qd6 {[%clk 0:01:21.3]} 19. Qxd6 {[%clk
0:01:53.9]} 19... exd6 {[%clk 0:01:22.2]} 20. Bc4 {[%clk 0:01:54.4]} 20... Rfd8
{[%clk 0:01:04.5]} 21. Bxd5 {[%clk 0:01:47.2]} 21... Bxd5 {[%clk 0:01:01.1]} 22.
Rhd1 {[%clk 0:01:45.2]} 22... Kf8 {[%clk 0:00:18.6]} 23. Nc3 {[%clk 0:01:42.7]}
23... Ke7 {[%clk 0:00:13]} 24. Nxd5+ {[%clk 0:01:42]} 24... cxd5 {[%clk
0:00:13.9]} 25. Rxd5 {[%clk 0:01:42.9]} 25... Rb6 {[%clk 0:00:14.6]} 26. c4
{[%clk 0:01:40.4]} 26... Rc8 {[%clk 0:00:14.4]} 27. Kc3 {[%clk 0:01:39.6]} 27...
Ra6 {[%clk 0:00:15]} 28. a4 {[%clk 0:01:35.7]} 28... Rb8 {[%clk 0:00:15.4]} 29.
Rb5 {[%clk 0:01:34.4]} 29... Rc8 {[%clk 0:00:14.4]} 30. Rb7+ {[%clk 0:01:34]}
30... Kf8 {[%clk 0:00:15.1]} 31. Re1 {[%clk 0:01:32.6]} 31... d5 {[%clk
0:00:08.8]} 32. Ree7 {[%clk 0:01:31.1]} 32... dxc4 {[%clk 0:00:09.4]} 33. Rxf7+
{[%clk 0:01:31.1]} 33... Ke8 {[%clk 0:00:10]} 34. Rxh7 {[%clk 0:01:26.5]} 34...
cxb3+ {[%clk 0:00:10.5]} 35. Kxb3 {[%clk 0:01:26.1]} 35... Rb6+ {[%clk
0:00:09.8]} 36. Rxb6 {[%clk 0:01:26.4]} 36... axb6 {[%clk 0:00:10.7]} 37. Rh8+
{[%clk 0:01:27.3]} 37... Kd7 {[%clk 0:00:10.6]} 38. Rxc8 {[%clk 0:01:27.9]}
38... Kxc8 {[%clk 0:00:11.5]} 39. Kc4 {[%clk 0:01:28.5]} 1-0